fUSD/lending_fUSD_20240526
["ID","MTS","AMOUNT","RATE_DAILY","PERIOD"]
[327938270,1716682232792,-160.32,0.00013973,2]
[327938271,1716682232802,-605.1960698,0.00019724,2]
[327938272,1716682232846,-259.16997759,0.00019724,2]
[327938273,1716682232856,-3210.10003241,0.00019725,2]
[327938274,1716682232867,-860.35582076,0.00019725,2]
[327938275,1716682232879,-38924.81707949,0.00019725,2]
[327938276,1716682232889,-889.44,0.0002042,2]
[327938277,1716682232899,-160.32,0.00020447,2]
[327938278,1716682232909,-1050.0,0.00021,2]
[327938279,1716682232919,-151.0,0.00022078,3]
[327938280,1716682232929,-499.99,0.00022093,2]
[327938281,1716682232939,-150.45637689,0.00022257,2]
[327938282,1716682232951,-257.61,0.00022259,2]
[327938283,1716682232963,-1000.0,0.00022363,2]
[327938284,1716682232973,-250.0,0.00022367,2]
[327938285,1716682232983,-250.0,0.00022388,2]
[327938286,1716682232992,-1286.35,0.00022397,2]
[327938287,1716682233003,-250.0,0.00022409,2]
[327938288,1716682233013,-221.71,0.00022429,2]
[327938289,1716682233023,-150.45637689,0.00022501,2]
[327938290,1716682233032,-166.66666666,0.00022602,2]
[327938291,1716682233042,-152.6,0.00022639,2]
[327938292,1716682233052,-164.25208458,0.00022656,2]
[327938293,1716682233061,-889.44,0.00022684,2]
[327938294,1716682233070,-153.24373512,0.00022743,2]
[327938295,1716682233080,-153.57465641,0.00022769,2]
[327938296,1716682233090,-153.24373512,0.00022877,2]
[327938297,1716682233099,-150.45637689,0.00022885,2]
[327938298,1716682233108,-150.45637689,0.00022917,2]
[327938299,1716682233118,-1100.0,0.00023,2]
[327938300,1716682233128,-153.50552386,0.00023009,2]
[327938301,1716682233138,-152.58490756,0.00023172,2]
[327938302,1716682233148,-152.41767349,0.00023382,2]
[327938303,1716682233158,-153.78497659,0.00023393,2]
[327938304,1716682233168,-152.58490756,0.00023667,2]
[327938305,1716682233178,-472.59666178,0.00024,2]
[327938306,1716682233187,-433.26102806,0.00024,2]
[327938307,1716682233197,-1000.0,0.00024,2]
[327938308,1716682233207,-152.58490756,0.00024299,2]
[327938309,1716682233218,-1000.0,0.000245,2]
[327938310,1716682233228,-155.34582745,0.00024593,2]
[327938311,1716682233238,-180.0,0.00024633,2]
[327938312,1716682233247,-150.45637689,0.00024638,2]
[327938313,1716682233257,-154.36370949,0.00024707,2]
[327938314,1716682233267,-162.76924048,0.000249,2]
[327938315,1716682233277,-14236.97214893,0.000249,2]
[327938316,1716682233287,-1087.1161,0.000249,2]
[327938317,1716682233296,-500.0,0.000249,2]
[327938318,1716682233306,-8108.8023,0.000249,2]
[327938319,1716682233315,-1000.0,0.000249,2]
[327938320,1716682233325,-10189.26516902,0.000249,2]
[327938321,1716682233335,-7165.96297374,0.000249,2]
[327938322,1716682233345,-3963.6683,0.000249,2]
[327938323,1716682233355,-1000.0,0.000249,2]
[327938324,1716682233364,-2500.0,0.000249,2]
[327938325,1716682233375,-319.18401734,0.000249,2]
[327938326,1716682233385,-889.44,0.00024948,2]
[327938327,1716682233396,-150.72,0.0002499,2]
[327938328,1716682233407,-150.72,0.0002499,2]
[327938329,1716682233418,-150.72,0.0002499,2]
[327938330,1716682233428,-303.86142036,0.00024998,2]
[327938331,1716682233439,-68034.85909833,0.00025,2]
[327938332,1716682233457,-293.26397614,0.00025,2]
[327938333,1716682233470,-650.23905597,0.00025,2]
[327938340,1716682240411,-3816.4,0.00025,9]
[327938341,1716682240572,-740.83310956,0.00025,9]
[327938342,1716682240733,-32213.15355356,0.00025,9]
[327938343,1716682240743,-138566.11035456,0.00025,2]
[327938344,1716682242433,-589.63823878,0.00025,2]
[327938345,1716682242444,-1453.48355748,0.00025,2]
[327938348,1716682243666,-6790.78450001,0.00025,2]
[327938349,1716682243678,-3471.546448,0.00025,2]
[327938350,1716682243692,-43329.38885,0.00025,2]
[327938351,1716682243703,-298.93134934,0.00025,2]
[327938352,1716682243715,-15698.5786229,0.00025,2]
[327938353,1716682243728,-412.74691942,0.00025,2]
[327938354,1716682243743,-2988.55504348,0.00025,2]
[327938355,1716682243755,-1137.74093596,0.00025,2]
[327938356,1716682244414,-561036.28737736,0.00025,2]
[327938362,1716682246363,-1069.36870737,0.00024999,10]
[327938363,1716682246373,-938.63716978,0.00025,2]
[327938364,1716682246385,-13241.49106982,0.00025,2]
[327938365,1716682246419,-1912.80987458,0.00025,2]
[327938366,1716682246431,-3424.309831,0.00025,2]
[327938367,1716682246443,-1825.79,0.00025,2]
[327938368,1716682246476,-6132.54188406,0.00025,2]
[327938369,1716682246488,-164064.0096689,0.00025,2]
[327938370,1716682246499,-3555.70374447,0.00025,2]
[327938371,1716682246532,-354.95789939,0.00025,2]
[327938372,1716682246591,-784.50318454,0.00025,2]
[327938373,1716682246647,-7146.8997323,0.00025,2]
[327938374,1716682246659,-2293.52835284,0.00025,2]
[327938375,1716682246670,-574.94793868,0.00025,2]
[327938376,1716682246682,-7667.45326397,0.00025,2]
[327938377,1716682246757,-669.896727,0.00025,2]
[327938412,1716683192151,-212.28088261,0.00013872,2]
[327938442,1716683431565,-286.8442272,0.00013872,2]
[327938443,1716683431575,-152.32,0.00013973,2]
[327938444,1716683431585,-1050.0,0.00021,2]
[327938445,1716683431595,-795.76,0.00021235,2]
[327938446,1716683431604,-210.35,0.00022466,2]
[327938447,1716683431614,-154.36370949,0.0002247,2]
[327938448,1716683431624,-214.67,0.00022488,2]
[327938449,1716683431633,-218.71,0.00022525,2]
[327938450,1716683431645,-250.0,0.00022547,2]
[327938451,1716683431654,-155.34582745,0.00022639,2]
[327938452,1716683431663,-150.45637689,0.00022693,2]
[327938453,1716683431672,-800.0,0.00022827,2]
[327938454,1716683431687,-568.04993849,0.00023,2]
[327938455,1716683431700,-531.95006151,0.00023,2]
[327938456,1716683431710,-250.0,0.00023139,2]
[327938457,1716683431721,-150.45637689,0.00023156,2]
[327938458,1716683431730,-150.45637689,0.00023232,2]
[327938459,1716683431740,-150.45637689,0.00023373,2]
[327938460,1716683431749,-2263.8495,0.00023399,2]
[327938461,1716683431761,-795.76,0.00023499,2]
[327938462,1716683431770,-155.34582745,0.00023589,2]
[327938463,1716683431780,-200.0,0.00023598,2]
[327938464,1716683431790,-1000.0,0.000237,2]
[327938465,1716683431799,-153.24373512,0.00023779,2]
[327938466,1716683431808,-152.6,0.00023809,2]
[327938467,1716683431818,-433.26102806,0.00024269,2]
[327938468,1716683431827,-155.34582745,0.0002427,2]
[327938469,1716683431837,-151.4818748,0.00024618,2]
[327938470,1716683431847,-10097.71766595,0.00024899,2]
[327938471,1716683431858,-6449.36667642,0.00024899,2]
[327938472,1716683431869,-26781.2251,0.000249,2]
[327938473,1716683431880,-2867.7659,0.000249,2]
[327938474,1716683431891,-401.6954,0.000249,2]
[327938475,1716683431903,-88821.5659,0.000249,2]
[327938476,1716683431913,-684.626,0.000249,2]
[327938477,1716683431925,-2696.53772547,0.000249,2]
[327938478,1716683431936,-2500.0,0.000249,2]
[327938480,1716683431946,-10809.9709881,0.00024985,2]
[327938481,1716683431956,-63815.9577454,0.00024985,2]
[327938482,1716683431966,-2344.1151404,0.00024985,2]
[327938483,1716683431976,-48909.1848841,0.00024985,2]
[327938484,1716683431986,-2331.51530665,0.00024999,2]
[327938485,1716683431995,-39481.50487603,0.00025,2]
[327938486,1716683432017,-1420.2114032,0.00025,2]
[327938487,1716683432028,-6637.5486,0.00025,2]
[327938488,1716683432054,-654.28007,0.00025,2]
[327938489,1716683432065,-1084.00000008,0.00025,2]
[327938490,1716683432081,-3952.19064637,0.00025,2]
[327938491,1716683432093,-95017.6191735,0.00025,2]
[327938492,1716683432102,-238.43858843,0.00025,2]
[327938493,1716683432112,-851.76072695,0.00025,2]
[327938494,1716683432325,-155.0,0.00025,2]
[327938495,1716683432336,-155.0,0.00025,2]
[327938496,1716683432345,-224.42312563,0.00025,2]
[327938497,1716683432355,-280.63145247,0.00025,3]
[327938498,1716683432363,-500.0,0.00025,2]
[327938499,1716683432373,-257.24940323,0.00025,2]
[327938500,1716683432382,-1039.84746642,0.00025,2]
[327938501,1716683432391,-1044.31301003,0.00025,2]
[327938502,1716683432400,-2000.0,0.00025,2]
[327938503,1716683432410,-200.0,0.00025,2]
[327938504,1716683432419,-3000.0,0.00025,2]
[327938505,1716683432428,-1150.0,0.00025,2]
[327938506,1716683432437,-200.0,0.00025,2]
[327938507,1716683432447,-168.19220069,0.00025002,2]
[327938508,1716683432457,-319.18401733,0.0002515,2]
[327938509,1716683432466,-2000.0,0.0002525,2]
[327938510,1716683432475,-200.0,0.0002525,2]
[327938511,1716683432484,-200.0,0.0002525,2]
[327938512,1716683432493,-399.169476,0.000255,2]
[327938513,1716683432503,-2000.0,0.00025503,2]
[327938514,1716683432512,-200.0,0.00025503,2]
[327938515,1716683432521,-150.45637689,0.00025509,2]
[327938516,1716683432531,-800.0,0.00025681,2]
[327938517,1716683432540,-667.69840363,0.00025758,2]
[327938518,1716683432549,-200.0,0.00025758,2]
[327938519,1716683432559,-795.76,0.00025763,2]
[327938520,1716683432568,-153.50552387,0.00025775,2]
[327938521,1716683432577,-6449.36667636,0.00025818,2]
[327938522,1716683432587,-10097.7176659,0.00025819,2]
[327938523,1716683432596,-163.36,0.0002589,2]
[327938524,1716683432605,-152.96549235,0.00025926,2]
[327938525,1716683432614,-319.18401733,0.00025963,2]
[327938526,1716683432624,-200.0,0.00026015,2]
[327938527,1716683432633,-153.24373512,0.00026048,2]
[327938528,1716683432642,-153.78497659,0.00026118,2]
[327938529,1716683432651,-150.45637689,0.00026136,2]
[327938530,1716683432662,-205.0,0.0002618,2]
[327938531,1716683432671,-153.78497659,0.00026372,2]
[327938532,1716683432680,-155.44537493,0.00026398,2]
[327938533,1716683432690,-9156.94527158,0.00026399,2]
[327938534,1716683432699,-200.0,0.00026547,2]
[327938535,1716683432708,-6449.36667636,0.00026736,2]
[327938536,1716683432717,-10097.7176659,0.00026738,2]
[327938537,1716683432726,-229.98075359,0.00026741,2]
[327938538,1716683432735,-151.4818748,0.00026744,2]
[327938539,1716683432745,-319.18401733,0.00026775,2]
[327938540,1716683432758,-47476.18038806,0.00026798,3]
[327938541,1716683432767,-3014.0,0.00026849,7]
[327938542,1716683432776,-205.0,0.0002685,2]
[327938543,1716683432785,-160.32,0.00026921,2]
[327938544,1716683432795,-150.45637689,0.00026927,2]
[327938545,1716683432804,-169.411803,0.00026952,2]
[327938546,1716683432814,-1116.320557,0.00026952,2]
[327938547,1716683432823,-820.795779,0.00026952,2]
[327938548,1716683432834,-166.712687,0.00026952,2]
[327938549,1716683432843,-155.63901,0.00026952,2]
[327938550,1716683432853,-169.411801,0.00026952,2]
[327938551,1716683432862,-1827.347897,0.00026952,2]
[327938552,1716683432872,-4822.160574,0.00026952,2]
[327938553,1716683432882,-14360.143112,0.00026952,2]
[327938554,1716683432891,-273.598593,0.00026952,2]
[327938555,1716683432902,-166.712688,0.00026952,2]
[327938556,1716683432912,-609.115966,0.00026952,2]
[327938557,1716683432922,-169.411803,0.00026952,2]
[327938558,1716683432931,-155.639011,0.00026952,2]
[327938559,1716683432941,-372.106852,0.00026952,2]
[327938560,1716683432951,-194.178452,0.00026952,2]
[327938561,1716683432961,-173.135101,0.00026952,2]
[327938562,1716683432972,-16010.611019,0.00026952,2]
[327938563,1716683432981,-152.58490756,0.00026962,2]
[327938564,1716683432991,-151.0,0.00027,7]
[327938565,1716683433001,-151.0,0.00027,7]
[327938566,1716683433010,-151.0,0.00027,7]
[327938567,1716683433020,-174.848392,0.00027,7]
[327938568,1716683433029,-174.848392,0.00027,7]
[327938569,1716683433039,-188.662306,0.00027,7]
[327938570,1716683433050,-188.662306,0.00027,7]
[327938571,1716683433060,-151.0,0.00027,7]
[327938572,1716683433069,-150.0,0.00027,2]
[327938573,1716683433078,-1200.0,0.00027,2]
[327938574,1716683433090,-5137.0,0.00027094,2]
[327938575,1716683433099,-1466.0,0.00027094,2]
[327938576,1716683433110,-316.983,0.00027094,2]
[327938577,1716683433120,-1225.0,0.00027094,2]
[327938578,1716683433131,-164.0,0.00027094,2]
[327938579,1716683433141,-1062.0,0.00027094,2]
[327938580,1716683433151,-151.0,0.00027095,7]
[327938581,1716683433160,-151.0,0.00027095,7]
[327938582,1716683433169,-159.327107,0.00027095,7]
[327938583,1716683433180,-480.040928,0.00027095,7]
[327938584,1716683433189,-480.040928,0.00027095,7]
[327938585,1716683433199,-151.0,0.00027095,7]
[327938586,1716683433208,-233.796108,0.00027095,7]
[327938587,1716683433218,-233.796108,0.00027095,7]
[327938588,1716683433228,-151.0,0.00027095,7]
[327938589,1716683433238,-151.0,0.00027095,7]
[327938590,1716683433248,-470.88977701,0.00027125,2]
[327938591,1716683433259,-151.4818748,0.0002717,2]
[327938592,1716683433268,-500.0,0.00027187,2]
[327938593,1716683433278,-347.954734,0.000272,2]
[327938594,1716683433288,-200.0,0.00027229,2]
[327938595,1716683433297,-500.0,0.00027229,2]
[327938596,1716683433306,-1226.27389606,0.00027287,2]
[327938597,1716683433316,-151.0,0.00027288,7]
[327938598,1716683433325,-179.76022,0.00027288,7]
[327938599,1716683433335,-680.65369,0.00027288,7]
[327938600,1716683433345,-680.65369,0.00027288,7]
[327938601,1716683433355,-175.780979,0.00027288,7]
[327938602,1716683433364,-151.0,0.00027288,7]
[327938603,1716683433385,-175.780979,0.00027288,7]
[327938604,1716683433395,-151.0,0.00027288,7]
[327938605,1716683433404,-999.252238,0.00027288,7]
[327938606,1716683433414,-169.605002,0.00027288,7]
[327938607,1716683433424,-999.252238,0.00027288,7]
[327938608,1716683433433,-169.605002,0.00027288,7]
[327938609,1716683433443,-151.0,0.00027288,7]
[327938610,1716683433452,-151.0,0.00027288,7]
[327938611,1716683433462,-151.0,0.00027288,7]
[327938612,1716683433472,-151.0,0.00027288,7]
[327938613,1716683433482,-151.0,0.00027288,7]
[327938614,1716683433492,-151.0,0.00027288,7]
[327938615,1716683433502,-169.214586,0.00027288,7]
[327938616,1716683433512,-236.884873,0.00027288,7]
[327938617,1716683433522,-169.214586,0.00027288,7]
[327938618,1716683433532,-185.354764,0.00027288,7]
[327938619,1716683433542,-151.0,0.00027288,7]
[327938620,1716683433552,-185.354764,0.00027288,7]
[327938621,1716683433563,-490.094338,0.00027288,7]
[327938622,1716683433573,-380.463408,0.00027288,7]
[327938623,1716683433583,-490.094338,0.00027288,7]
[327938624,1716683433593,-380.463408,0.00027288,7]
[327938625,1716683433603,-152.701068,0.00027288,7]
[327938626,1716683433613,-151.0,0.00027288,7]
[327938627,1716683433623,-152.701068,0.00027288,7]
[327938628,1716683433633,-151.0,0.00027288,7]
[327938629,1716683433643,-151.0,0.00027288,7]
[327938630,1716683433652,-365.374327,0.00027288,7]
[327938631,1716683433662,-365.374327,0.00027288,7]
[327938632,1716683433672,-151.0,0.00027288,7]
[327938633,1716683433687,-151.0,0.00027288,7]
[327938634,1716683433697,-166.536728,0.00027288,7]
[327938635,1716683433707,-521.907443,0.00027288,7]
[327938636,1716683433716,-166.536728,0.00027288,7]
[327938637,1716683433727,-521.907443,0.00027288,7]
[327938638,1716683433737,-177.496548,0.00027288,7]
[327938639,1716683433747,-177.496548,0.00027288,7]
[327938640,1716683433759,-151.0,0.00027288,7]
[327938641,1716683433770,-151.0,0.00027288,7]
[327938642,1716683433780,-151.0,0.00027288,7]
[327938643,1716683433790,-151.0,0.00027288,7]
[327938644,1716683433799,-1005.119299,0.00027288,7]
[327938645,1716683433810,-1005.119299,0.00027288,7]
[327938646,1716683433819,-151.0,0.00027288,7]
[327938647,1716683433829,-151.0,0.00027288,7]
[327938648,1716683433839,-222.056132,0.00027288,7]
[327938649,1716683433848,-151.0,0.00027288,7]
[327938650,1716683433858,-222.056132,0.00027288,7]
[327938651,1716683433868,-151.0,0.00027288,7]
[327938652,1716683433877,-151.0,0.00027288,7]
[327938653,1716683433888,-367.726463,0.00027288,7]
[327938654,1716683433897,-151.0,0.00027288,7]
[327938655,1716683433907,-367.726463,0.00027288,7]
[327938656,1716683433916,-151.0,0.00027288,7]
[327938657,1716683433927,-151.0,0.00027288,7]
[327938658,1716683433937,-151.0,0.00027288,7]
[327938659,1716683433947,-496.890537,0.00027288,7]
[327938660,1716683433956,-496.890537,0.00027288,7]
[327938661,1716683433966,-151.0,0.00027288,7]
[327938662,1716683433976,-151.0,0.00027288,7]
[327938663,1716683433985,-505.872632,0.00027288,7]
[327938664,1716683433995,-505.872632,0.00027288,7]
[327938665,1716683434007,-669.464264,0.00027288,7]
[327938666,1716683434016,-669.464264,0.00027288,7]
[327938667,1716683434026,-1157.376353,0.00027288,7]
[327938668,1716683434036,-1116.320557,0.00027289,2]
[327938669,1716683434046,-820.795779,0.00027289,2]
[327938670,1716683434055,-1827.347897,0.00027289,2]
[327938671,1716683434065,-4822.160574,0.00027289,2]
[327938672,1716683434076,-14360.143112,0.00027289,2]
[327938673,1716683434086,-273.598593,0.00027289,2]
[327938674,1716683434095,-609.115966,0.00027289,2]
[327938675,1716683434105,-372.106852,0.00027289,2]
[327938676,1716683434114,-16010.611019,0.00027289,2]
[327938677,1716683434124,-486.0,0.000273,11]
[327938678,1716683434133,-344.0,0.000273,2]
[327938679,1716683434143,-189.0,0.000273,11]
[327938680,1716683434152,-150.0,0.000273,5]
[327938681,1716683434161,-151.0,0.00027306,30]
[327938682,1716683434171,-1000.0,0.00027313,2]
[327938683,1716683434180,-150.0,0.00027314,2]
[327938684,1716683434189,-204.322,0.00027314,2]
[327938685,1716683434199,-150.0,0.00027314,2]
[327938686,1716683434208,-165.958,0.00027314,2]
[327938687,1716683434217,-10000.0,0.00027381,2]
[327938688,1716683434227,-7500.0,0.00027381,2]
[327938689,1716683434236,-151.0,0.00027384,7]
[327938690,1716683434247,-151.0,0.00027384,7]
[327938691,1716683434258,-151.0,0.00027384,7]
[327938692,1716683434267,-151.0,0.00027384,7]
[327938693,1716683434276,-151.0,0.00027384,7]
[327938694,1716683434286,-151.0,0.00027384,7]
[327938695,1716683434295,-151.0,0.00027384,7]
[327938696,1716683434304,-151.0,0.00027384,7]
[327938697,1716683434314,-151.0,0.00027384,7]
[327938698,1716683434323,-227.89385,0.00027384,7]
[327938699,1716683434333,-151.260722,0.00027384,7]
[327938700,1716683434342,-151.0,0.00027384,7]
[327938701,1716683434351,-151.0,0.00027384,7]
[327938702,1716683434361,-151.0,0.00027384,7]
[327938703,1716683434370,-151.211228,0.00027384,7]
[327938704,1716683434379,-293.344095,0.00027384,7]
[327938705,1716683434388,-293.344095,0.00027384,7]
[327938706,1716683434398,-397.216762,0.00027384,7]
[327938707,1716683434407,-397.216762,0.00027384,7]
[327938708,1716683434417,-151.0,0.00027384,7]
[327938709,1716683434427,-151.0,0.00027384,7]
[327938710,1716683434440,-359.249574,0.00027384,7]
[327938711,1716683434450,-151.0,0.00027384,7]
[327938712,1716683434460,-1527.862104,0.00027384,7]
[327938713,1716683434469,-359.249574,0.00027384,7]
[327938714,1716683434479,-1527.862104,0.00027384,7]
[327938715,1716683434489,-234.769158,0.00027384,7]
[327938716,1716683434498,-234.769158,0.00027384,7]
[327938717,1716683434509,-151.0,0.00027384,7]
[327938718,1716683434519,-151.0,0.00027384,7]
[327938719,1716683434528,-805.18519156,0.0002739,2]
[327938720,1716683434538,-10000.0,0.00027391,2]
[327938721,1716683434548,-151.0,0.00027391,7]
[327938722,1716683434558,-283.72371629,0.00027397,2]
[327938723,1716683434568,-212.27842,0.00027397,2]
[327938724,1716683434578,-1385.90735399,0.00027397,2]
[327938725,1716683434588,-300.0,0.00027397,2]
[327938726,1716683434598,-151.0,0.00027397,7]
[327938727,1716683434607,-151.0,0.00027397,7]
[327938728,1716683434617,-151.0,0.00027397,7]
[327938729,1716683434627,-208.28691503,0.00027398,2]
[327938730,1716683434637,-5876.79869969,0.00027398,2]
[327938731,1716683434647,-151.0,0.00027398,7]
[327938732,1716683434657,-1040.1132784,0.00027399,2]
[327938733,1716683434667,-348.56790913,0.00027399,2]
[327938734,1716683434677,-162.76924044,0.000274,2]
[327938735,1716683434687,-152.710661,0.000274,7]
[327938736,1716683434697,-151.0,0.000274,7]
[327938737,1716683434706,-151.0,0.000274,7]
[327938738,1716683434716,-174.848392,0.000274,7]
[327938739,1716683434726,-174.848392,0.000274,7]
[327938740,1716683434735,-188.662306,0.000274,7]
[327938741,1716683434744,-188.662306,0.000274,7]
[327938742,1716683434755,-151.0,0.000274,7]
[327938743,1716683434765,-151.0,0.000274,7]
[327938744,1716683434774,-151.0,0.000274,7]
[327938745,1716683434784,-151.0,0.000274,7]
[327938746,1716683434793,-151.0,0.000274,7]
[327938747,1716683434803,-480.040928,0.000274,7]
[327938748,1716683434813,-480.040928,0.000274,7]
[327938749,1716683434822,-273.325407,0.000274,7]
[327938750,1716683434832,-15012.45008821,0.000274,2]
[327938751,1716683434841,-233.796108,0.000274,7]
[327938752,1716683434850,-233.796108,0.000274,7]
[327938753,1716683434860,-151.0,0.000274,7]
[327938754,1716683434869,-151.620958,0.000274,7]
[327938755,1716683434879,-709.0,0.000274,2]
[327938756,1716683434888,-151.0,0.000274,7]
[327938757,1716683434897,-205.203607,0.000274,7]
[327938758,1716683434907,-365.374327,0.000274,7]
[327938759,1716683435137,-1000.0,0.000274,2]
[327938760,1716683435147,-365.374327,0.000274,7]
[327938761,1716683435156,-151.0,0.000274,7]
[327938762,1716683435165,-151.0,0.000274,7]
[327938763,1716683435174,-166.536728,0.000274,7]
[327938764,1716683435183,-521.907443,0.000274,7]
[327938765,1716683435192,-166.536728,0.000274,7]
[327938766,1716683435201,-521.907443,0.000274,7]
[327938767,1716683435210,-183.9754424,0.000274,2]
[327938768,1716683435220,-448.0,0.000274,2]
[327938769,1716683435229,-177.496548,0.000274,7]
[327938770,1716683435238,-177.496548,0.000274,7]
[327938771,1716683435248,-151.0,0.000274,7]
[327938772,1716683435259,-151.0,0.000274,7]
[327938773,1716683435268,-151.0,0.000274,7]
[327938774,1716683435277,-151.0,0.000274,7]
[327938775,1716683435286,-1005.119299,0.000274,7]
[327938776,1716683435295,-1005.119299,0.000274,7]
[327938777,1716683435304,-151.0,0.000274,7]
[327938778,1716683435313,-151.0,0.000274,7]
[327938779,1716683435322,-222.056132,0.000274,7]
[327938780,1716683435331,-151.0,0.000274,7]
[327938781,1716683435340,-222.056132,0.000274,7]
[327938782,1716683435350,-151.0,0.000274,7]
[327938783,1716683435359,-174.03347426,0.000274,2]
[327938784,1716683435368,-1041.4281317,0.000274,2]
[327938785,1716683435378,-944.2,0.000274,2]
[327938786,1716683435387,-1021.27393518,0.000274,2]
[327938787,1716683435396,-169.411802,0.00027401,2]
[327938788,1716683435405,-166.712685,0.00027401,2]
[327938789,1716683435415,-169.411802,0.00027401,2]
[327938790,1716683435424,-5217.4729557,0.00027432,2]
[327938791,1716683435434,-151.0,0.00027451,7]
[327938792,1716683435443,-680.65369,0.00027451,7]
[327938793,1716683435452,-680.65369,0.00027451,7]
[327938794,1716683435461,-151.0,0.00027451,7]
[327938795,1716683435471,-151.0,0.00027451,7]
[327938796,1716683435479,-186.341547,0.00027451,7]
[327938797,1716683435489,-186.341547,0.00027451,7]
[327938798,1716683435498,-151.0,0.00027451,7]
[327938799,1716683435508,-151.0,0.00027451,7]
[327938800,1716683435518,-219.0,0.0002747,15]
[327938801,1716683435527,-150.5,0.0002747,15]
[327938802,1716683435537,-1210.0,0.0002747,15]
[327938803,1716683435546,-1150.0,0.0002747,15]
[327938804,1716683435555,-150.71,0.00027471,2]
[327938805,1716683435564,-219.0,0.0002748,15]
[327938806,1716683435573,-216.67,0.0002748,15]
[327938807,1716683435583,-150.5,0.0002748,15]
[327938808,1716683435592,-1210.0,0.0002748,15]
[327938809,1716683435602,-1150.0,0.0002748,15]
[327938810,1716683435611,-151.0,0.0002748,7]
[327938811,1716683435620,-174.662371,0.0002748,7]
[327938812,1716683435629,-151.0,0.0002748,7]
[327938813,1716683435638,-174.662371,0.0002748,7]
[327938814,1716683435647,-151.0,0.0002748,7]
[327938815,1716683435661,-153.982023,0.0002748,7]
[327938816,1716683435670,-151.0,0.0002748,7]
[327938817,1716683435681,-151.0,0.0002748,7]
[327938818,1716683435691,-151.0,0.0002748,7]
[327938819,1716683435701,-153.982023,0.0002748,7]
[327938820,1716683435710,-151.0,0.0002748,7]
[327938821,1716683435720,-151.0,0.0002748,7]
[327938822,1716683435730,-151.0,0.0002748,7]
[327938823,1716683435739,-151.0,0.0002748,7]
[327938824,1716683435749,-247.395046,0.0002748,7]
[327938825,1716683435762,-151.0,0.0002748,7]
[327938826,1716683435771,-151.0,0.0002748,7]
[327938827,1716683435783,-175.780979,0.0002748,7]
[327938828,1716683435792,-245.947055,0.0002748,7]
[327938829,1716683435801,-175.780979,0.0002748,7]
[327938830,1716683435810,-999.252238,0.0002748,7]
[327938831,1716683435819,-169.605002,0.0002748,7]
[327938832,1716683435829,-999.252238,0.0002748,7]
[327938833,1716683435838,-169.605002,0.0002748,7]
[327938834,1716683435847,-151.0,0.0002748,7]
[327938835,1716683435856,-151.0,0.0002748,7]
[327938836,1716683435866,-151.0,0.0002748,7]
[327938837,1716683435875,-151.0,0.0002748,7]
[327938838,1716683435884,-151.0,0.0002748,7]
[327938839,1716683435893,-151.0,0.0002748,7]
[327938840,1716683435902,-169.214586,0.0002748,7]
[327938841,1716683435912,-169.214586,0.0002748,7]
[327938842,1716683435921,-185.354764,0.0002748,7]
[327938843,1716683435930,-151.0,0.0002748,7]
[327938844,1716683435940,-185.354764,0.0002748,7]
[327938845,1716683435950,-490.094338,0.0002748,7]
[327938846,1716683435959,-380.463408,0.0002748,7]